[Event "Dalheimers Hus Rapid Open"]
[Site "Dalheimers Hus, Slottsskogsgatan 12, Gothenburg, Sweden"]
[Date "2024.04.14"]
[Round "6.6"]
[White "Mohammadi, Amir"]
[Black "Kallen, Jonas"]
[Result "1-0"]
[TimeControl "15 minutes + 5 seconds per move from move one."]
[WhiteFideId "1705890"]
[BlackFideId "1712896"]
[WhiteElo "2275"]
[BlackElo "2021"]

1. e4 {[%clk 00:15:08]} {[%emt 00:00:02]} e5 {[%clk 00:15:08]} {[%emt
00:00:01]} 2. d4 {[%clk 00:15:05]} {[%emt 00:00:08]} exd4 {[%clk 00:15:11]}
{[%emt 00:00:02]} 3. Qxd4 {[%clk 00:15:09]} Nc6 {[%clk 00:15:13]} {[%emt
00:00:03]} 4. Qe3 {[%clk 00:15:13]} {[%emt 00:00:02]} Nf6 {[%clk 00:14:49]}
{[%emt 00:00:29]} 5. Bd2 {[%clk 00:15:16]} {[%emt 00:00:02]} d6 {[%clk
00:14:28]} {[%emt 00:00:25]} 6. Nc3 {[%clk 00:15:19]} {[%emt 00:00:03]} Be7
{[%clk 00:14:31]} {[%emt 00:00:02]} 7. O-O-O {[%clk 00:15:22]} {[%emt
00:00:03]} Be6 {[%clk 00:14:18]} {[%emt 00:00:17]} 8. Qg3 {[%clk 00:14:39]}
{[%emt 00:00:48]} Nh5 {[%clk 00:13:40]} {[%emt 00:00:43]} 9. Qf3 {[%clk
00:13:45]} {[%emt 00:00:59]} Nf6 {[%clk 00:13:35]} {[%emt 00:00:10]} 10. h3
{[%clk 00:13:36]} {[%emt 00:00:14]} Ne5 {[%clk 00:12:47]} {[%emt 00:00:53]} 11.
Qg3 {[%clk 00:13:31]} {[%emt 00:00:08]} Ng6 {[%clk 00:12:09]} {[%emt 00:00:44]}
12. Be2 {[%clk 00:12:52]} {[%emt 00:00:44]} Qd7 {[%clk 00:11:53]} {[%emt
00:00:22]} 13. f4 {[%clk 00:12:52]} {[%emt 00:00:05]} O-O-O {[%clk 00:09:54]}
{[%emt 00:02:03]} 14. f5 {[%clk 00:12:28]} {[%emt 00:00:29]} Bxf5 {[%clk
00:09:55]} {[%emt 00:00:04]} 15. exf5 {[%clk 00:12:31]} {[%emt 00:00:02]} Qxf5
{[%clk 00:09:58]} {[%emt 00:00:02]} 16. Nf3 {[%clk 00:10:38]} {[%emt 00:01:57]}
Kb8 {[%clk 00:09:22]} {[%emt 00:00:43]} 17. Nd4 {[%clk 00:10:24]} {[%emt
00:00:19]} Qc8 {[%clk 00:08:49]} {[%emt 00:00:37]} 18. Rhf1 {[%clk 00:09:45]}
{[%emt 00:00:44]} a6 {[%clk 00:08:29]} {[%emt 00:00:26]} 19. Qf2 {[%clk
00:08:11]} {[%emt 00:01:38]} Rhe8 {[%clk 00:06:55]} {[%emt 00:01:39]} 20. Rfe1
{[%clk 00:07:46]} {[%emt 00:00:31]} d5 {[%clk 00:06:33]} {[%emt 00:00:27]} 21.
Nf5 {[%clk 00:07:33]} {[%emt 00:00:17]} Bf8 {[%clk 00:06:15]} {[%emt 00:00:23]}
22. g4 {[%clk 00:07:30]} {[%emt 00:00:08]} c5 {[%clk 00:05:39]} {[%emt
00:00:41]} 23. Bf3 {[%clk 00:06:20]} {[%emt 00:01:15]} d4 {[%clk 00:04:57]}
{[%emt 00:00:47]} 24. Ne4 {[%clk 00:06:06]} {[%emt 00:00:18]} Nd5 {[%clk
00:04:07]} {[%emt 00:00:56]} 25. Ned6 {[%clk 00:05:59]} {[%emt 00:00:12]} Bxd6
{[%clk 00:03:45]} {[%emt 00:00:27]} 26. Rxe8 {[%clk 00:05:41]} {[%emt
00:00:23]} 1-0

[Event "Dalheimers Hus Rapid Open"]
[Site "Dalheimers Hus, Slottsskogsgatan 12, Gothenburg, Sweden"]
[Date "2024.04.14"]
[Round "6.7"]
[White "Ulff, Johan"]
[Black "Wellevit, Tomas"]
[Result "0-1"]
[TimeControl "15 minutes + 5 seconds per move from move one."]
[WhiteFideId "1733893"]
[BlackFideId "1731963"]
[WhiteElo "2123"]
[BlackElo "1978"]

1. d4 {[%clk 00:15:08]} {[%emt 00:00:01]} d5 {[%clk 00:15:09]} {[%emt
00:00:02]} 2. Bf4 {[%clk 00:15:12]} {[%emt 00:00:01]} Nf6 {[%clk 00:15:11]}
{[%emt 00:00:03]} 3. e3 {[%clk 00:15:16]} {[%emt 00:00:01]} e6 {[%clk
00:15:11]} {[%emt 00:00:05]} 4. c4 {[%clk 00:14:56]} {[%emt 00:00:25]} Bd6
{[%clk 00:15:15]} {[%emt 00:00:01]} 5. Bg5 {[%clk 00:14:54]} {[%emt 00:00:07]}
c6 {[%clk 00:15:19]} 6. Nc3 {[%clk 00:14:52]} {[%emt 00:00:07]} Nbd7 {[%clk
00:15:23]} {[%emt 00:00:02]} 7. f4 {[%clk 00:14:47]} {[%emt 00:00:09]} h6
{[%clk 00:15:26]} {[%emt 00:00:02]} 8. Bh4 {[%clk 00:14:51]} Qa5 {[%clk
00:15:02]} {[%emt 00:00:29]} 9. c5 {[%clk 00:14:30]} {[%emt 00:00:25]} g5
{[%clk 00:13:13]} {[%emt 00:01:54]} 10. Bf2 {[%clk 00:10:38]} {[%emt 00:03:57]}
Be7 {[%clk 00:13:10]} {[%emt 00:00:08]} 11. fxg5 {[%clk 00:10:39]} {[%emt
00:00:04]} hxg5 {[%clk 00:13:14]} 12. a3 {[%clk 00:10:08]} {[%emt 00:00:36]}
Ne4 {[%clk 00:13:12]} {[%emt 00:00:06]} 13. b4 {[%clk 00:10:03]} {[%emt
00:00:11]} Nxc3 {[%clk 00:13:16]} 14. Qc1 {[%clk 00:10:01]} {[%emt 00:00:07]}
Qc7 {[%clk 00:12:59]} {[%emt 00:00:21]} 15. Qxc3 {[%clk 00:08:34]} {[%emt
00:01:32]} Rxh2 {[%clk 00:13:00]} {[%emt 00:00:04]} 16. Rxh2 {[%clk 00:08:38]}
Qxh2 {[%clk 00:13:04]} {[%emt 00:00:02]} 17. Ne2 {[%clk 00:08:42]} {[%emt
00:00:01]} Qh8 {[%clk 00:12:52]} {[%emt 00:00:17]} 18. Bg3 {[%clk 00:08:27]}
{[%emt 00:00:19]} Nf6 {[%clk 00:12:08]} {[%emt 00:00:49]} 19. Be5 {[%emt
00:00:13]} Qh4+ {[%clk 00:12:12]} 20. g3 {[%clk 00:08:23]} {[%emt 00:00:01]}
Qh7 {[%clk 00:11:43]} {[%emt 00:00:34]} 21. Bxf6 {[%clk 00:06:17]} {[%emt
00:02:11]} Bxf6 {[%clk 00:11:47]} {[%emt 00:00:01]} 22. Bg2 {[%clk 00:06:20]}
{[%emt 00:00:03]} Bd7 {[%clk 00:11:08]} {[%emt 00:00:44]} 23. Kd2 {[%clk
00:06:14]} {[%emt 00:00:10]} Qg7 {[%clk 00:11:08]} {[%emt 00:00:06]} 24. a4
{[%clk 00:05:50]} {[%emt 00:00:29]} Ke7 {[%clk 00:10:39]} {[%emt 00:00:34]} 25.
b5 {[%clk 00:05:13]} {[%emt 00:00:42]} cxb5 {[%emt 00:00:07]} 26. Qa3 {[%clk
00:05:17]} Ke8 {[%clk 00:10:30]} {[%emt 00:00:13]} 27. axb5 {[%clk 00:05:17]}
{[%emt 00:00:05]} Bxb5 {[%clk 00:10:33]} {[%emt 00:00:03]} 28. Qb4 {[%clk
00:05:11]} {[%emt 00:00:11]} Bc6 {[%clk 00:10:33]} {[%emt 00:00:05]} 29. Nc3
{[%clk 00:05:14]} {[%emt 00:00:02]} Bd8 {[%clk 00:09:28]} {[%emt 00:01:09]} 30.
Nb5 {[%clk 00:05:08]} {[%emt 00:00:11]} a5 {[%clk 00:08:34]} {[%emt 00:01:00]}
31. Qb2 {[%clk 00:04:54]} {[%emt 00:00:18]} Kf8 {[%clk 00:07:58]} {[%emt
00:00:42]} 32. Rf1 {[%clk 00:04:53]} {[%emt 00:00:05]} Bxb5 {[%clk 00:06:47]}
{[%emt 00:01:16]} 33. Qxb5 {[%clk 00:04:56]} {[%emt 00:00:02]} f5 {[%clk
00:06:52]} 34. Bxd5 {[%clk 00:04:20]} {[%emt 00:00:41]} exd5 {[%clk 00:05:34]}
{[%emt 00:01:24]} 35. Rxf5+ {[%clk 00:04:23]} Bf6 {[%clk 00:05:38]} {[%emt
00:00:01]} 36. Qb6 {[%clk 00:04:12]} {[%emt 00:00:16]} Ra6 {[%clk 00:05:23]}
{[%emt 00:00:20]} 37. Qd8+ {[%clk 00:03:58]} {[%emt 00:00:19]} Kf7 {[%clk
00:05:28]} 38. Qxd5+ {[%clk 00:03:28]} {[%emt 00:00:35]} Kg6 {[%clk 00:05:13]}
{[%emt 00:00:19]} 39. g4 {[%clk 00:02:22]} {[%emt 00:01:10]} Qf7 {[%clk
00:04:21]} {[%emt 00:00:58]} 40. Qe4 {[%clk 00:02:26]} Kg7 {[%clk 00:04:14]}
{[%emt 00:00:12]} 41. Rd5 {[%clk 00:01:21]} {[%emt 00:01:10]} a4 {[%clk
00:04:10]} {[%emt 00:00:09]} 42. Qf5 {[%clk 00:01:07]} {[%emt 00:00:18]} Re6
{[%clk 00:03:18]} {[%emt 00:00:57]} 43. e4 {[%clk 00:01:07]} {[%emt 00:00:06]}
Be7 {[%clk 00:03:06]} {[%emt 00:00:17]} 44. e5 {[%clk 00:00:59]} {[%emt
00:00:11]} Rh6 {[%clk 00:02:30]} {[%emt 00:00:43]} 45. Qxf7+ {[%clk 00:00:46]}
{[%emt 00:00:18]} Kxf7 {[%clk 00:02:33]} {[%emt 00:00:01]} 46. Rd7 {[%clk
00:00:50]} b6 {[%clk 00:02:28]} {[%emt 00:00:10]} 47. d5 {[%clk 00:00:40]}
{[%emt 00:00:16]} a3 {[%clk 00:01:47]} {[%emt 00:00:46]} 48. d6 {[%clk
00:00:31]} {[%emt 00:00:13]} Rh2+ {[%clk 00:01:35]} {[%emt 00:00:17]} 49. Kc1
{[%clk 00:00:29]} {[%emt 00:00:07]} a2 {[%clk 00:00:56]} {[%emt 00:00:45]} 50.
Rxe7+ {[%clk 00:00:32]} {[%emt 00:00:02]} Kf8 {[%clk 00:01:00]} 51. Ra7 {[%clk
00:00:35]} {[%emt 00:00:02]} bxc5 {[%clk 00:00:54]} {[%emt 00:00:10]} 52. e6
{[%emt 00:00:14]} Re2 {[%emt 00:00:06]} 53. e7+ {[%clk 00:00:07]} {[%emt
00:00:13]} Ke8 {[%clk 00:00:33]} {[%emt 00:00:26]} 54. Ra8+ {[%clk 00:00:00]}
0-1

[Event "Dalheimers Hus Rapid Open"]
[Site "Dalheimers Hus, Slottsskogsgatan 12, Gothenburg, Sweden"]
[Date "2024.04.14"]
[Round "6.8"]
[White "Johansson, Ulf"]
[Black "Cramling, Pia"]
[Result "0-1"]
[TimeControl "15 minutes + 5 seconds per move from move one."]
[BlackTitle "GM"]
[WhiteFideId "1701380"]
[BlackFideId "1700030"]
[WhiteElo "2083"]
[BlackElo "2377"]

1. e4 {[%clk 00:15:08]} {[%emt 00:00:02]} c5 {[%clk 00:15:09]} {[%emt
00:00:02]} 2. Nf3 {[%clk 00:15:09]} {[%emt 00:00:04]} Nc6 {[%clk 00:14:58]}
{[%emt 00:00:16]} 3. Bb5 {[%clk 00:15:09]} {[%emt 00:00:05]} g6 {[%clk
00:14:58]} {[%emt 00:00:05]} 4. O-O {[%clk 00:15:11]} {[%emt 00:00:03]} Bg7
{[%clk 00:15:02]} 5. c3 {[%clk 00:15:12]} {[%emt 00:00:04]} Nf6 {[%clk
00:15:03]} {[%emt 00:00:04]} 6. Re1 {[%clk 00:15:14]} {[%emt 00:00:03]} O-O
{[%clk 00:15:03]} {[%emt 00:00:05]} 7. d4 {[%clk 00:15:14]} {[%emt 00:00:05]}
d5 {[%clk 00:15:03]} {[%emt 00:00:04]} 8. e5 {[%clk 00:15:10]} {[%emt
00:00:10]} Ne4 {[%clk 00:15:03]} {[%emt 00:00:04]} 9. Be3 {[%clk 00:14:41]}
{[%emt 00:00:35]} cxd4 {[%clk 00:14:38]} {[%emt 00:00:29]} 10. cxd4 {[%clk
00:14:43]} {[%emt 00:00:04]} Qb6 {[%clk 00:14:38]} {[%emt 00:00:05]} 11. Bxc6
{[%clk 00:14:36]} {[%emt 00:00:12]} Qxc6 {[%clk 00:14:13]} {[%emt 00:00:30]} 12.
Nbd2 {[%clk 00:11:48]} {[%emt 00:02:53]} Bg4 {[%clk 00:13:03]} {[%emt
00:01:15]} 13. Qb3 {[%clk 00:11:08]} {[%emt 00:00:45]} Nxd2 {[%clk 00:12:41]}
{[%emt 00:00:27]} 14. Nxd2 {[%clk 00:11:09]} {[%emt 00:00:04]} Rfc8 {[%clk
00:12:22]} {[%emt 00:00:24]} 15. Rab1 {[%clk 00:10:16]} {[%emt 00:00:58]} Bf5
{[%clk 00:12:13]} {[%emt 00:00:14]} 16. Ra1 {[%clk 00:10:12]} {[%emt 00:00:10]}
Bc2 {[%clk 00:10:43]} {[%emt 00:01:34]} 17. Qa3 {[%clk 00:09:38]} {[%emt
00:00:40]} Bf8 {[%clk 00:10:41]} {[%emt 00:00:06]} 18. b3 {[%clk 00:07:09]}
{[%emt 00:02:35]} e6 {[%clk 00:09:57]} {[%emt 00:00:49]} 19. Qb2 {[%clk
00:07:10]} {[%emt 00:00:04]} Qc3 {[%clk 00:09:25]} {[%emt 00:00:37]} 20. Nc4
{[%clk 00:05:35]} {[%emt 00:01:40]} Rxc4 {[%clk 00:09:20]} {[%emt 00:00:10]}
0-1

[Event "Dalheimers Hus Rapid Open"]
[Site "Dalheimers Hus, Slottsskogsgatan 12, Gothenburg, Sweden"]
[Date "2024.04.14"]
[Round "6.9"]
[White "Winsnes, Rikard"]
[Black "Arnelind, Mikael"]
[Result "1-0"]
[TimeControl "15 minutes + 5 seconds per move from move one."]
[WhiteTitle "IM"]
[WhiteFideId "1700430"]
[BlackFideId "1704290"]
[WhiteElo "2352"]
[BlackElo "2153"]

1. e4 {[%clk 00:15:09]} e6 {[%clk 00:15:07]} {[%emt 00:00:03]} 2. d4 {[%clk
00:15:10]} {[%emt 00:00:04]} d5 {[%clk 00:15:11]} {[%emt 00:00:02]} 3. Nd2
{[%clk 00:15:11]} {[%emt 00:00:04]} Nf6 {[%clk 00:15:12]} {[%emt 00:00:04]} 4.
e5 {[%clk 00:15:11]} {[%emt 00:00:04]} Nfd7 {[%clk 00:15:15]} {[%emt 00:00:02]}
5. Ngf3 {[%clk 00:15:03]} {[%emt 00:00:13]} c5 {[%clk 00:14:30]} {[%emt
00:00:51]} 6. c3 {[%clk 00:15:03]} {[%emt 00:00:06]} Nc6 {[%clk 00:14:26]}
{[%emt 00:00:08]} 7. Bd3 {[%clk 00:15:01]} {[%emt 00:00:06]} b6 {[%clk
00:13:04]} {[%emt 00:01:28]} 8. O-O {[%clk 00:14:45]} {[%emt 00:00:20]} cxd4
{[%clk 00:12:46]} {[%emt 00:00:23]} 9. cxd4 {[%clk 00:14:31]} {[%emt 00:00:19]}
Nb4 {[%clk 00:12:27]} {[%emt 00:00:24]} 10. Be2 {[%clk 00:13:46]} {[%emt
00:00:50]} Ba6 {[%clk 00:11:47]} {[%emt 00:00:46]} 11. Bxa6 {[%clk 00:13:17]}
{[%emt 00:00:34]} Nxa6 {[%clk 00:11:51]} {[%emt 00:00:01]} 12. a3 {[%clk
00:12:38]} {[%emt 00:00:44]} Be7 {[%clk 00:11:30]} {[%emt 00:00:25]} 13. Qe2
{[%clk 00:12:08]} {[%emt 00:00:36]} Nc7 {[%clk 00:11:05]} {[%emt 00:00:30]} 14.
Re1 {[%clk 00:11:51]} {[%emt 00:00:21]} O-O {[%clk 00:09:49]} {[%emt 00:01:22]}
15. Nf1 {[%clk 00:11:49]} {[%emt 00:00:07]} Rc8 {[%clk 00:07:28]} {[%emt
00:02:26]} 16. Ng3 {[%clk 00:11:45]} {[%emt 00:00:09]} Re8 {[%clk 00:07:04]}
{[%emt 00:00:29]} 17. Nh5 {[%clk 00:11:36]} {[%emt 00:00:13]} f5 {[%clk
00:06:13]} {[%emt 00:00:57]} 18. exf6 {[%clk 00:10:57]} {[%emt 00:00:44]} Nxf6
{[%clk 00:06:16]} {[%emt 00:00:02]} 19. Nxf6+ {[%clk 00:10:45]} {[%emt
00:00:17]} Bxf6 {[%clk 00:06:17]} {[%emt 00:00:03]} 20. Bf4 {[%clk 00:10:44]}
{[%emt 00:00:06]} a6 {[%clk 00:04:26]} {[%emt 00:01:57]} 21. Bxc7 {[%clk
00:10:23]} {[%emt 00:00:26]} Rxc7 {[%clk 00:04:08]} {[%emt 00:00:24]} 22. Qxa6
{[%clk 00:10:26]} Rc4 {[%clk 00:03:54]} {[%emt 00:00:19]} 23. Rad1 {[%clk
00:09:54]} {[%emt 00:00:36]} Qc7 {[%clk 00:03:53]} {[%emt 00:00:07]} 24. Qb5
{[%clk 00:09:39]} {[%emt 00:00:18]} Re7 {[%clk 00:03:51]} {[%emt 00:00:09]} 25.
Re2 {[%clk 00:09:07]} {[%emt 00:00:37]} Qc6 {[%clk 00:03:13]} {[%emt 00:00:43]}
26. Qb3 {[%clk 00:08:48]} {[%emt 00:00:23]} b5 {[%clk 00:03:14]} {[%emt
00:00:04]} 27. Qe3 {[%clk 00:08:14]} {[%emt 00:00:38]} h6 {[%clk 00:02:58]}
{[%emt 00:00:21]} 28. h3 {[%clk 00:07:49]} {[%emt 00:00:30]} Kf7 {[%clk
00:02:25]} {[%emt 00:00:39]} 29. Rde1 {[%clk 00:07:39]} {[%emt 00:00:14]} Qb6
{[%clk 00:02:13]} {[%emt 00:00:18]} 30. b3 {[%clk 00:06:09]} {[%emt 00:01:35]}
Rxd4 {[%clk 00:01:54]} {[%emt 00:00:24]} 31. Kh1 {[%clk 00:04:27]} {[%emt
00:01:46]} Qa7 {[%clk 00:01:16]} {[%emt 00:00:44]} 32. Nxd4 {[%clk 00:04:19]}
{[%emt 00:00:14]} Bxd4 {[%clk 00:01:19]} 33. Qf4+ {[%clk 00:04:17]} {[%emt
00:00:06]} Bf6 {[%clk 00:01:14]} {[%emt 00:00:10]} 34. Qd6 {[%clk 00:04:14]}
{[%emt 00:00:08]} Qd7 {[%clk 00:00:56]} {[%emt 00:00:24]} 35. Qxd7 {[%clk
00:04:08]} {[%emt 00:00:10]} Rxd7 {[%clk 00:01:00]} {[%emt 00:00:02]} 36. Rxe6
{[%clk 00:04:12]} Ra7 {[%clk 00:01:05]} 37. Rb6 {[%clk 00:04:04]} {[%emt
00:00:13]} Rxa3 {[%clk 00:00:54]} {[%emt 00:00:16]} 38. Rxb5 {[%clk 00:04:07]}
{[%emt 00:00:02]} d4 {[%clk 00:00:54]} {[%emt 00:00:05]} 39. Rd1 {[%clk
00:04:04]} {[%emt 00:00:08]} Ra2 {[%clk 00:00:53]} {[%emt 00:00:06]} 40. Kg1
{[%clk 00:03:58]} {[%emt 00:00:10]} Ke6 {[%clk 00:00:57]} {[%emt 00:00:01]} 41.
g3 {[%clk 00:04:02]} {[%emt 00:00:02]} Kd6 {[%clk 00:00:56]} {[%emt 00:00:06]}
42. Kf1 {[%clk 00:03:31]} {[%emt 00:00:35]} Kc6 {[%clk 00:00:56]} {[%emt
00:00:06]} 43. Rb8 {[%clk 00:03:34]} {[%emt 00:00:02]} Rb2 {[%clk 00:00:49]}
{[%emt 00:00:12]} 44. Kg2 {[%clk 00:02:32]} {[%emt 00:01:07]} Kc5 {[%clk
00:00:33]} {[%emt 00:00:21]} 45. Kf3 {[%clk 00:02:30]} {[%emt 00:00:06]} Be5
{[%clk 00:00:28]} {[%emt 00:00:12]} 46. Rc8+ {[%clk 00:02:18]} {[%emt
00:00:17]} Kd5 {[%clk 00:00:12]} {[%emt 00:00:20]} 47. Rd8+ {[%clk 00:02:20]}
{[%emt 00:00:03]} Kc5 {[%clk 00:00:15]} {[%emt 00:00:02]} 48. Ke4 {[%clk
00:02:23]} {[%emt 00:00:01]} Bf6 {[%clk 00:00:18]} {[%emt 00:00:03]} 49. Rc8+
{[%clk 00:01:29]} {[%emt 00:00:59]} Kd6 {[%clk 00:00:21]} {[%emt 00:00:02]} 50.
f4 {[%clk 00:01:26]} {[%emt 00:00:07]} Rxb3 {[%emt 00:00:06]} 51. Rd3 {[%clk
00:01:30]} Rb1 {[%clk 00:00:24]} {[%emt 00:00:03]} 52. g4 {[%clk 00:01:34]}
{[%emt 00:00:01]} Re1+ {[%clk 00:00:24]} {[%emt 00:00:05]} 53. Kf5 {[%clk
00:01:37]} {[%emt 00:00:02]} Rf1 {[%clk 00:00:20]} {[%emt 00:00:09]} 54. Rf8
{[%clk 00:01:21]} {[%emt 00:00:21]} Kd5 {[%emt 00:00:27]} 55. Rc8 {[%clk
00:01:01]} Bg5 {[%clk 00:00:24]} {[%emt 00:00:03]} 56. Kg6 {[%clk 00:01:04]}
{[%emt 00:00:02]} Rxf4 {[%clk 00:00:26]} {[%emt 00:00:03]} 57. Kxg7 {[%clk
00:01:08]} {[%emt 00:00:01]} Ke4 {[%clk 00:00:25]} {[%emt 00:00:07]} 58. Rd1
{[%clk 00:01:11]} Rf3 {[%clk 00:00:20]} {[%emt 00:00:10]} 59. Re8+ {[%clk
00:01:15]} {[%emt 00:00:02]} Kd5 {[%clk 00:00:19]} {[%emt 00:00:05]} 60. Kg6
{[%clk 00:01:14]} {[%emt 00:00:06]} Be3 {[%clk 00:00:21]} {[%emt 00:00:03]} 61.
h4 {[%clk 00:01:14]} {[%emt 00:00:06]} Rh3 {[%clk 00:00:20]} {[%emt 00:00:05]}
62. h5 {[%clk 00:01:12]} {[%emt 00:00:07]} Kc4 {[%clk 00:00:16]} {[%emt
00:00:09]} 63. Rxe3 {[%clk 00:01:11]} {[%emt 00:00:06]} dxe3 {[%clk 00:00:20]}
64. Kxh6 {[%clk 00:01:15]} {[%emt 00:00:01]} e2 {[%clk 00:00:20]} {[%emt
00:00:05]} 65. Re1 {[%clk 00:01:10]} {[%emt 00:00:10]} Kd3 {[%clk 00:00:24]}
{[%emt 00:00:01]} 66. g5 {[%clk 00:01:14]} Kd2 {[%clk 00:00:10]} {[%emt
00:00:19]} 67. Rxe2+ {[%clk 00:01:18]} Kxe2 {[%clk 00:00:14]} {[%emt 00:00:01]}
68. g6 {[%clk 00:01:22]} Kf3 {[%clk 00:00:17]} {[%emt 00:00:02]} 69. g7 {[%clk
00:01:26]} Rg3 {[%clk 00:00:13]} {[%emt 00:00:09]} 70. Kh7 {[%clk 00:01:30]}
Kf4 {[%clk 00:00:08]} {[%emt 00:00:10]} 71. h6 {[%clk 00:01:34]} {[%emt
00:00:01]} Kf5 {[%clk 00:00:06]} {[%emt 00:00:07]} 72. g8=Q {[%clk 00:01:35]}
{[%emt 00:00:04]} Rxg8 {[%clk 00:00:08]} {[%emt 00:00:03]} 73. Kxg8 {[%clk
00:01:39]} Kg6 {[%clk 00:00:12]} 74. h7 {[%clk 00:01:37]} 1-0

[Event "Dalheimers Hus Rapid Open"]
[Site "Dalheimers Hus, Slottsskogsgatan 12, Gothenburg, Sweden"]
[Date "2024.04.14"]
[Round "6.10"]
[White "Gillefalk, Bjorn"]
[Black "Storme, Isak"]
[Result "0-1"]
[TimeControl "15 minutes + 5 seconds per move from move one."]
[BlackTitle "IM"]
[WhiteFideId "1708821"]
[BlackFideId "1728113"]
[WhiteElo "1987"]
[BlackElo "2352"]

1. e4 {[%clk 00:15:02]} {[%emt 00:00:07]} c5 {[%clk 00:15:04]} {[%emt
00:00:06]} 2. Nf3 {[%clk 00:15:04]} {[%emt 00:00:03]} e6 {[%clk 00:15:08]}
{[%emt 00:00:03]} 3. d4 {[%clk 00:14:53]} {[%emt 00:00:15]} cxd4 {[%clk
00:15:09]} {[%emt 00:00:04]} 4. Nxd4 {[%clk 00:14:57]} a6 {[%clk 00:15:07]}
{[%emt 00:00:07]} 5. c4 {[%clk 00:14:55]} {[%emt 00:00:08]} Qc7 {[%clk
00:15:10]} {[%emt 00:00:01]} 6. Nc3 {[%clk 00:14:45]} {[%emt 00:00:15]} Nf6
{[%clk 00:15:10]} {[%emt 00:00:04]} 7. Qf3 {[%clk 00:14:23]} {[%emt 00:00:27]}
b6 {[%clk 00:14:30]} {[%emt 00:00:46]} 8. Qg3 {[%clk 00:14:18]} {[%emt
00:00:10]} d6 {[%clk 00:14:21]} {[%emt 00:00:14]} 9. Bd3 {[%clk 00:13:38]}
{[%emt 00:00:44]} Nbd7 {[%clk 00:14:14]} {[%emt 00:00:13]} 10. O-O {[%clk
00:13:31]} {[%emt 00:00:12]} Bb7 {[%clk 00:14:06]} {[%emt 00:00:13]} 11. Re1
{[%clk 00:13:25]} {[%emt 00:00:10]} Be7 {[%clk 00:13:28]} {[%emt 00:00:44]} 12.
Bd2 {[%clk 00:10:42]} {[%emt 00:02:48]} Ne5 {[%clk 00:13:21]} {[%emt 00:00:12]}
13. b3 {[%clk 00:10:19]} {[%emt 00:00:29]} g5 {[%clk 00:12:45]} {[%emt
00:00:40]} 14. Rac1 {[%clk 00:10:13]} {[%emt 00:00:11]} Nh5 {[%clk 00:12:04]}
{[%emt 00:00:46]} 15. Qh3 {[%clk 00:09:57]} {[%emt 00:00:21]} Nf4 {[%clk
00:11:47]} {[%emt 00:00:22]} 16. Bxf4 {[%clk 00:10:00]} {[%emt 00:00:01]} gxf4
{[%clk 00:11:51]} {[%emt 00:00:02]} 17. Bb1 {[%clk 00:09:41]} {[%emt 00:00:24]}
Bf6 {[%clk 00:11:13]} {[%emt 00:00:43]} 18. Qh5 {[%clk 00:09:19]} {[%emt
00:00:28]} Ng6 {[%clk 00:09:43]} {[%emt 00:01:34]} 19. Red1 {[%clk 00:08:34]}
{[%emt 00:00:51]} Qc5 {[%clk 00:09:24]} {[%emt 00:00:23]} 20. Qxc5 {[%clk
00:08:14]} {[%emt 00:00:25]} bxc5 {[%clk 00:09:18]} {[%emt 00:00:10]} 21. Nf3
{[%clk 00:08:07]} {[%emt 00:00:12]} Ke7 {[%clk 00:09:14]} {[%emt 00:00:09]} 22.
Kf1 {[%clk 00:07:26]} {[%emt 00:00:45]} h5 {[%clk 00:09:12]} {[%emt 00:00:07]}
23. Ke2 {[%clk 00:06:37]} {[%emt 00:00:55]} Ne5 {[%clk 00:09:01]} {[%emt
00:00:17]} 24. Nxe5 {[%clk 00:06:23]} {[%emt 00:00:19]} Bxe5 {[%clk 00:09:04]}
{[%emt 00:00:02]} 25. f3 {[%clk 00:06:16]} {[%emt 00:00:11]} Rhg8 {[%clk
00:08:42]} {[%emt 00:00:27]} 26. Kf1 {[%clk 00:06:17]} {[%emt 00:00:04]} Bc6
{[%clk 00:08:40]} {[%emt 00:00:07]} 27. Ne2 {[%clk 00:06:09]} {[%emt 00:00:13]}
Rg7 {[%clk 00:08:34]} {[%emt 00:00:11]} 28. Kf2 {[%clk 00:06:07]} {[%emt
00:00:06]} h4 {[%clk 00:08:06]} {[%emt 00:00:34]} 29. Rg1 {[%clk 00:05:10]}
{[%emt 00:01:01]} Kd7 {[%clk 00:07:46]} {[%emt 00:00:26]} 30. Bd3 {[%clk
00:05:05]} {[%emt 00:00:11]} Kc7 {[%clk 00:07:37]} {[%emt 00:00:14]} 31. Rcd1
{[%clk 00:04:07]} {[%emt 00:01:02]} Kb6 {[%clk 00:07:37]} {[%emt 00:00:05]} 32.
Bc2 {[%clk 00:04:07]} {[%emt 00:00:05]} Ka5 {[%clk 00:07:22]} {[%emt 00:00:21]}
33. Kf1 {[%clk 00:03:49]} {[%emt 00:00:22]} Kb4 {[%clk 00:07:00]} {[%emt
00:00:27]} 34. g3 {[%clk 00:03:32]} {[%emt 00:00:22]} Rag8 {[%clk 00:05:25]}
{[%emt 00:01:40]} 35. gxh4 {[%clk 00:03:14]} {[%emt 00:00:23]} Rxg1+ {[%clk
00:05:25]} {[%emt 00:00:05]} 36. Nxg1 {[%clk 00:03:16]} {[%emt 00:00:02]} Ka3
{[%clk 00:04:35]} {[%emt 00:00:56]} 37. Rd2 {[%clk 00:02:38]} {[%emt 00:00:42]}
Kxa2 {[%clk 00:04:18]} {[%emt 00:00:23]} 38. Rg2 {[%clk 00:02:18]} {[%emt
00:00:25]} Rh8 {[%clk 00:04:21]} {[%emt 00:00:02]} 39. Rg4 {[%clk 00:02:00]}
{[%emt 00:00:23]} Kb2 {[%clk 00:04:10]} {[%emt 00:00:16]} 40. Bd1 {[%clk
00:02:03]} {[%emt 00:00:02]} f5 {[%clk 00:03:50]} {[%emt 00:00:25]} 41. exf5
{[%clk 00:02:06]} exf5 {[%clk 00:03:54]} {[%emt 00:00:02]} 42. Rg5 {[%clk
00:01:59]} {[%emt 00:00:12]} Rxh4 {[%clk 00:03:38]} {[%emt 00:00:20]} 43. h3
{[%clk 00:02:02]} {[%emt 00:00:03]} Kc1 {[%clk 00:03:26]} {[%emt 00:00:17]} 44.
Be2 {[%clk 00:01:36]} {[%emt 00:00:31]} Kc2 {[%clk 00:03:15]} {[%emt 00:00:15]}
45. Rxf5 {[%clk 00:01:40]} {[%emt 00:00:02]} Kxb3 {[%clk 00:03:18]} {[%emt
00:00:02]} 46. Rf8 {[%clk 00:01:36]} {[%emt 00:00:09]} Rh8 {[%clk 00:02:47]}
{[%emt 00:00:36]} 47. Rf7 {[%clk 00:01:26]} {[%emt 00:00:15]} Ra8 {[%clk
00:00:53]} {[%emt 00:01:58]} 48. Rc7 {[%clk 00:00:59]} {[%emt 00:00:33]} Be8
{[%clk 00:00:56]} {[%emt 00:00:02]} 49. h4 {[%clk 00:00:44]} {[%emt 00:00:20]}
a5 {[%clk 00:00:59]} {[%emt 00:00:02]} 50. Bd3 {[%clk 00:00:31]} {[%emt
00:00:18]} a4 {[%clk 00:00:56]} {[%emt 00:00:09]} 51. Ne2 {[%clk 00:00:22]}
{[%emt 00:00:13]} Rb8 {[%clk 00:00:25]} {[%emt 00:00:36]} 0-1